bitfinex/quotes_BTCUSD_20220115
["timestamp","ask_amount","ask_price","bid_price","bid_amount"]
[1642210458301,0.4917109,43079.0,43071.0,0.8]
[1642210458501,0.4917109,43079.0,43078.0,0.00126247]
[1642210459226,0.38070676,43080.0,43078.0,0.00126247]
[1642210461326,0.02562136,43083.0,43078.0,0.00126247]
[1642210461726,0.7135588,43083.0,43078.0,0.00126247]
[1642210461932,0.0012078,43082.0,43078.0,0.00126247]
[1642210463779,0.0012078,43082.0,43078.0,0.05929671]
[1642210465380,0.0012078,43082.0,43079.0,0.058032]
[1642210466484,0.59409713,43082.0,43079.0,0.058032]
[1642210466730,0.59409713,43082.0,43078.0,0.05929671]
[1642210469133,0.0012078,43082.0,43078.0,0.05929671]
[1642210469736,0.59409713,43082.0,43078.0,0.05929671]
[1642210470132,0.59409713,43082.0,43078.0,0.11732671]
[1642210471186,0.0012078,43082.0,43078.0,0.11732671]
[1642210471584,0.0012078,43082.0,43079.0,0.05803]
[1642210472583,0.59409713,43082.0,43079.0,0.05803]
[1642210473185,0.0012078,43082.0,43079.0,0.05803]
[1642210473586,0.0012078,43082.0,43080.0,0.28454358]
[1642210473985,0.0012078,43082.0,43080.0,0.34256958]
[1642210474427,0.0012078,43082.0,43080.0,0.28454358]
[1642210475427,0.0012078,43082.0,43080.0,0.34256958]
[1642210477435,0.0012078,43082.0,43079.0,0.05803]
[1642210477899,0.0012078,43082.0,43079.0,0.06203]
[1642210478899,0.0012078,43082.0,43079.0,0.05803]
[1642210479101,0.0012078,43082.0,43080.0,0.058026]
[1642210482833,0.0012078,43082.0,43080.0,0.34681181]
[1642210483529,0.0012078,43082.0,43080.0,0.46285881]
[1642210483733,0.55295765,43086.0,43084.0,0.2654974]
[1642210484032,0.9414,43096.0,43085.0,0.30727883]
[1642210484430,0.308,43100.0,43085.0,0.30727883]
[1642210484631,0.25302169,43097.0,43091.0,0.30430779]
[1642210484830,0.376192,43096.0,43088.0,0.058017]
[1642210485030,0.25302169,43097.0,43089.0,0.30673171]
[1642210485230,0.376192,43096.0,43089.0,0.30673171]
[1642210485487,0.4481287,43095.0,43089.0,0.30673171]
[1642210486083,0.4481287,43095.0,43090.0,0.058015]
[1642210486284,0.68793744,43093.0,43090.0,0.058015]
[1642210486485,0.68793744,43093.0,43089.0,0.30673171]
[1642210486685,0.68793744,43093.0,43090.0,0.05801675]
[1642210486884,0.68793744,43093.0,43087.0,0.00126863]
[1642210487283,0.68793744,43093.0,43089.0,0.31461994]
[1642210487485,0.68793744,43094.0,43090.0,0.30090263]
[1642210488684,1.13606614,43095.0,43090.0,0.30090263]
[1642210489548,0.68793744,43095.0,43090.0,0.30090263]
[1642210489949,0.68793744,43095.0,43091.0,0.05801514]
[1642210490149,0.68793744,43095.0,43090.0,0.30090263]
[1642210490551,0.68793744,43094.0,43090.0,0.30090263]
[1642210490948,0.68793744,43094.0,43090.0,0.35892024]
[1642210491348,0.68793744,43095.0,43090.0,0.3474096]
[1642210491547,0.68793744,43095.0,43090.0,0.05801761]
[1642210491748,0.68793744,43095.0,43090.0,0.34638363]
[1642210492148,0.59358879,43092.0,43090.0,0.34638363]
[1642210492349,0.59358879,43092.0,43090.0,0.28836602]
[1642210492548,0.59358879,43092.0,43089.0,0.006]
[1642210492973,0.59358879,43093.0,43087.0,0.00126863]
[1642210493573,0.59358879,43092.0,43087.0,0.29403401]
[1642210493776,0.59358879,43092.0,43088.0,0.31869473]
[1642210494574,0.59358879,43092.0,43088.0,0.43472944]
[1642210495178,0.59358879,43093.0,43088.0,0.43472944]
[1642210495375,0.59358879,43093.0,43088.0,0.37671073]
[1642210495779,0.59358879,43093.0,43088.0,0.38571073]
[1642210495975,0.59358879,43092.0,43088.0,0.38571073]
[1642210496626,0.59358879,43092.0,43090.0,0.05801608]
[1642210497425,0.59358879,43093.0,43090.0,0.05801608]
[1642210497928,0.59358879,43093.0,43088.0,0.2952003]
[1642210498129,0.59358879,43093.0,43088.0,0.29284545]
[1642210498331,0.59358879,43093.0,43088.0,0.007]
[1642210498924,0.59358879,43093.0,43088.0,0.29248556]
[1642210499624,0.59358879,43092.0,43088.0,0.007]
[1642210499825,0.59358879,43092.0,43088.0,0.29026006]
[1642210500495,0.59358879,43092.0,43087.0,0.36305457]
[1642210500696,0.59358879,43092.0,43087.0,0.01226863]
[1642210501098,0.59358879,43092.0,43087.0,0.00126863]
[1642210502696,0.59358879,43092.0,43087.0,0.05928926]
[1642210503096,0.59358879,43092.0,43087.0,0.00126863]
[1642210503502,0.59358879,43091.0,43087.0,0.00126863]
[1642210504430,0.59358879,43091.0,43087.0,0.05928925]
[1642210506533,0.59358879,43091.0,43088.0,0.058017]
[1642210506933,0.59358879,43092.0,43090.0,0.05801761]
[1642210507334,0.59358879,43093.0,43090.0,0.05801761]
[1642210508377,0.59358879,43092.0,43090.0,0.05801761]
[1642210509476,0.59358879,43091.0,43090.0,0.05801761]
[1642210510078,0.59358879,43091.0,43088.0,0.05801985]
[1642210513149,0.59358879,43091.0,43088.0,0.23205785]
[1642210513952,0.59358879,43092.0,43088.0,0.52391272]
[1642210514155,0.59358879,43092.0,43088.0,0.23205785]
[1642210514553,0.59358879,43093.0,43086.0,0.012]
[1642210514954,0.59358879,43093.0,43087.0,0.05802095]
[1642210515153,0.59358879,43091.0,43087.0,0.05802095]
[1642210518084,0.59358879,43092.0,43087.0,0.05802095]
[1642210519129,0.5996186,43091.0,43087.0,0.05802095]
[1642210519731,0.59358879,43090.0,43087.0,0.05802095]
[1642210519931,0.59358879,43090.0,43084.0,0.34352107]
[1642210520635,0.59358879,43090.0,43086.0,0.058021]
[1642210521240,0.5996186,43091.0,43084.0,0.52985763]
[1642210521632,0.5996186,43091.0,43084.0,0.50985763]
[1642210521835,0.5996186,43091.0,43084.0,0.53585763]
[1642210522036,0.59358879,43089.0,43084.0,0.2914974]
[1642210522734,0.59358879,43089.0,43084.0,0.34952191]
[1642210523186,0.59358879,43089.0,43084.0,0.32352191]
[1642210525589,0.59358879,43089.0,43084.0,0.60651521]
[1642210526089,0.59358879,43090.0,43086.0,0.058021]
[1642210526835,0.5996186,43091.0,43086.0,0.058021]
[1642210527636,0.00602981,43091.0,43086.0,0.17405187]
[1642210527833,0.00602981,43091.0,43088.0,0.058015]
[1642210528534,0.00602981,43091.0,43086.0,0.11603087]
[1642210528735,0.00602981,43091.0,43086.0,0.17404787]
[1642210529040,0.00602981,43091.0,43088.0,0.05801512]
[1642210529639,0.00602981,43091.0,43088.0,0.11603212]
[1642210530683,0.00602981,43091.0,43088.0,0.05801512]
[1642210531687,0.00602981,43091.0,43086.0,0.058019]
[1642210531888,0.00602981,43091.0,43086.0,0.017]
[1642210532087,1.52936573,43087.0,43086.0,0.017]
[1642210532292,1.90555773,43087.0,43086.0,0.017]
[1642210532487,0.40555773,43087.0,43086.0,0.017]
[1642210532888,0.45175773,43087.0,43086.0,0.017]
[1642210533087,0.45175773,43087.0,43078.0,0.63344968]
[1642210533287,0.43066113,43083.0,43078.0,0.3298601]
[1642210533487,0.43066113,43083.0,43079.0,0.33729]
[1642210533689,0.0462,43087.0,43079.0,0.33729]
[1642210533989,0.0462,43087.0,43078.0,0.38789221]
[1642210534430,0.0462,43087.0,43080.0,0.32818242]
[1642210535231,0.3616918,43086.0,43078.0,0.38789221]
[1642210535931,0.3616918,43086.0,43078.0,0.3298601]
[1642210536130,0.3616918,43086.0,43078.0,0.3878922]
[1642210536330,0.3616918,43086.0,43079.0,0.25901738]
[1642210536531,0.30936767,43084.0,43079.0,0.25901738]
[1642210536930,0.30936767,43084.0,43078.0,0.3878922]
[1642210537979,0.30936767,43084.0,43078.0,0.3298601]
[1642210540784,0.30936767,43084.0,43078.0,0.38789172]
[1642210540986,0.30936767,43084.0,43078.0,0.3298601]
[1642210541188,0.3616918,43086.0,43080.0,1.79824242]
[1642210541387,0.4116918,43086.0,43081.0,0.337273]
[1642210541630,0.4116918,43086.0,43078.0,0.3298601]
[1642210541836,0.4116918,43086.0,43079.0,0.058028]
[1642210542032,0.4116918,43086.0,43078.0,0.40089126]
[1642210542433,0.69391364,43086.0,43078.0,0.40089126]
[1642210543129,0.69391364,43086.0,43078.0,0.38789126]
[1642210543330,0.69391364,43086.0,43081.0,0.05802843]
[1642210544531,0.72818056,43086.0,43079.0,0.058028]
[1642210544733,0.72818056,43086.0,43078.0,0.3298601]
[1642210545483,0.72818056,43086.0,43079.0,0.29578374]
[1642210545985,0.72818056,43086.0,43078.0,0.3298601]
[1642210547588,0.08426692,43086.0,43079.0,0.28434018]
[1642210547792,0.03426692,43086.0,43079.0,0.28434018]
[1642210548088,0.03426692,43086.0,43079.0,0.40038318]
[1642210548286,0.03426692,43086.0,43080.0,0.33728]
[1642210548488,0.03426692,43086.0,43083.0,0.0580234]
[1642210548689,0.03426692,43086.0,43084.0,0.337247]
[1642210553518,0.03426692,43086.0,43079.0,2.24712739]
[1642210553714,0.03426692,43086.0,43080.0,0.337278]
[1642210553913,0.03426692,43086.0,43081.0,0.002]
[1642210555214,0.03426692,43086.0,43078.0,0.33110199]
[1642210557239,0.62633263,43086.0,43078.0,0.33110199]
[1642210557438,0.67633263,43086.0,43078.0,0.33110199]
[1642210559644,0.08426692,43086.0,43078.0,0.33110199]
[1642210559844,0.03426692,43086.0,43078.0,0.33110199]
[1642210560488,0.62633263,43086.0,43078.0,0.33110199]
[1642210561988,0.62633263,43086.0,43079.0,1.98419228]
[1642210562187,0.62633263,43086.0,43078.0,0.33110199]
[1642210566741,0.03426692,43086.0,43078.0,0.33110199]
[1642210570185,0.03426692,43086.0,43078.0,0.38913101]
[1642210575390,0.03426692,43086.0,43078.0,0.33110199]
[1642210576991,0.59206571,43085.0,43078.0,0.33110199]
[1642210577391,0.64206571,43085.0,43078.0,0.33110199]
[1642210579437,0.59206571,43083.0,43078.0,0.3298601]
[1642210580139,0.59206571,43083.0,43078.0,0.38789077]
[1642210581239,0.64206571,43085.0,43078.0,0.38789077]
[1642210582140,0.59206571,43084.0,43078.0,0.38789077]
[1642210582541,0.59206571,43084.0,43081.0,0.05802814]
[1642210582896,0.05,43085.0,43081.0,0.05802814]
[1642210583094,0.67633263,43086.0,43081.0,0.05802814]
[1642210583294,0.67633263,43086.0,43078.0,0.3298601]
[1642210583695,0.08426692,43086.0,43078.0,0.38789068]
[1642210583895,0.08426692,43086.0,43078.0,0.3298601]
[1642210584100,0.03426692,43086.0,43078.0,0.3298601]
[1642210585298,0.03426692,43086.0,43079.0,0.058029]
[1642210585498,0.03426692,43086.0,43081.0,0.05802778]
[1642210586099,0.03426692,43086.0,43079.0,0.058029]
[1642210586742,0.03426692,43086.0,43081.0,0.05802776]
[1642210589540,0.03426692,43086.0,43078.0,0.38789111]
[1642210589739,0.03426692,43086.0,43079.0,0.28496938]
[1642210590391,0.03426692,43086.0,43079.0,0.2852976]
[1642210590692,0.03426692,43086.0,43078.0,0.3298601]
[1642210590892,0.03426692,43086.0,43079.0,0.28520362]
[1642210591191,0.03426692,43086.0,43078.0,0.3298601]
[1642210592692,0.68437063,43086.0,43078.0,0.3298601]
[1642210593692,0.92706601,43086.0,43078.0,0.3298601]
[1642210594837,0.68437063,43086.0,43078.0,0.3298601]
[1642210595438,0.92686823,43086.0,43078.0,0.3298601]
[1642210596340,0.62633263,43086.0,43078.0,0.3298601]
[1642210596942,0.59206571,43082.0,43078.0,0.3298601]
[1642210597543,0.59206571,43084.0,43079.0,0.05802829]
[1642210599005,0.59206571,43085.0,43079.0,0.05802829]
[1642210599402,0.64206571,43085.0,43079.0,0.05802829]
[1642210599710,0.59206571,43083.0,43078.0,0.3298601]
[1642210599902,0.59206571,43083.0,43079.0,0.34402977]
[1642210600102,0.59206571,43083.0,43078.0,0.38788987]
[1642210600505,0.59206571,43084.0,43078.0,0.38788987]
[1642210601205,0.59206571,43083.0,43078.0,0.38788987]
[1642210601404,0.59206571,43083.0,43079.0,0.62125777]
[1642210601640,0.59206571,43083.0,43079.0,0.337289]
[1642210601837,0.59206571,43083.0,43078.0,0.38788987]
[1642210601838,0.59206571,43083.0,43078.0,0.67934388]
[1642210602038,0.58205771,43084.0,43079.0,0.017]
[1642210602440,0.05,43085.0,43079.0,0.017]
[1642210602841,0.74074332,43087.0,43079.0,0.017]
[1642210603040,0.79074332,43087.0,43079.0,0.017]
[1642210603439,0.79074332,43087.0,43075.0,0.11605657]
[1642210603642,0.79074332,43087.0,43072.0,0.00129614]
[1642210603643,0.37741986,43086.0,43072.0,0.00129614]
[1642210603944,0.28230858,43075.0,43073.0,0.69502557]
[1642210604141,0.37516858,43075.0,43073.0,0.066]
[1642210604744,1.47165784,43074.0,43073.0,0.066]
[1642210604944,1.84784984,43074.0,43073.0,0.066]
[1642210605384,1.84784984,43074.0,43067.0,0.60142928]
[1642210605385,0.74784984,43074.0,43067.0,0.60142928]
[1642210605590,0.37165784,43074.0,43067.0,0.31172928]
[1642210605986,0.37165784,43074.0,43066.0,0.98769142]
[1642210606187,0.37165784,43074.0,43068.0,0.097]
[1642210607391,0.37165784,43074.0,43066.0,0.29266585]
[1642210607587,0.37165784,43074.0,43066.0,0.00121244]
[1642210607789,0.05909197,43073.0,43064.0,0.69502557]
[1642210607991,0.0462,43072.0,43064.0,0.69502557]
[1642210608188,0.0462,43072.0,43064.0,0.79502557]
[1642210608189,0.03155743,43065.0,43064.0,0.79502557]
[1642210608389,0.11796743,43065.0,43064.0,0.79502557]
[1642210608590,1.21796743,43065.0,43064.0,0.79502557]
[1642210608789,1.21796743,43065.0,43064.0,0.1]
[1642210608988,1.59415943,43065.0,43064.0,0.1]
[1642210609437,1.59537911,43065.0,43064.0,0.1]
[1642210609638,1.79157911,43065.0,43064.0,0.1]
[1642210610042,1.79157911,43065.0,43059.0,0.00011852]
[1642210610237,0.00120736,43061.0,43059.0,0.00011852]
[1642210610436,0.50265938,43061.0,43059.0,0.00011852]
[1642210610639,0.65265938,43061.0,43059.0,0.00011852]
[1642210610836,0.376192,43060.0,43059.0,0.00011852]
[1642210611035,0.476192,43060.0,43059.0,0.00011852]
[1642210611836,0.522392,43060.0,43059.0,0.00011852]
[1642210612237,0.551392,43060.0,43059.0,0.00011852]
[1642210613189,0.81958382,43060.0,43059.0,0.00011852]
[1642210613389,0.79388322,43060.0,43059.0,0.00011852]
[1642210613990,0.522392,43060.0,43059.0,0.00011852]
[1642210614188,0.547392,43060.0,43059.0,0.00011852]
[1642210615390,0.522392,43060.0,43059.0,0.00011852]
[1642210616190,0.546392,43060.0,43059.0,0.00011852]
[1642210617043,1.1356102,43060.0,43059.0,0.00011852]
[1642210617443,1.1116102,43060.0,43059.0,0.00011852]
[1642210617644,1.0654102,43060.0,43059.0,0.00011852]
[1642210617850,0.476192,43060.0,43059.0,0.00011852]
[1642210618245,0.500192,43060.0,43059.0,0.00011852]
[1642210618844,0.400192,43060.0,43059.0,0.00011852]
[1642210620045,0.376192,43060.0,43059.0,0.00011852]
[1642210620244,0.450192,43060.0,43059.0,0.00011852]
[1642210620492,0.550192,43060.0,43059.0,0.00011852]
[1642210621486,0.526192,43060.0,43059.0,0.00011852]
[1642210622088,0.550192,43060.0,43059.0,0.00011852]
[1642210622688,0.42112875,43060.0,43059.0,0.00011852]
[1642210623488,0.39712875,43060.0,43059.0,0.00011852]
[1642210623690,0.29712875,43060.0,43059.0,0.00011852]
[1642210623891,0.39712875,43060.0,43059.0,0.00011852]
[1642210624148,0.44712875,43060.0,43059.0,0.00011852]
[1642210626251,0.47212875,43060.0,43059.0,0.00011852]
[1642210627998,0.67823902,43060.0,43059.0,0.00011852]
[1642210628997,1.46134563,43060.0,43059.0,0.00011852]
[1642210629399,1.43634563,43060.0,43059.0,0.00011852]
[1642210629797,1.58634563,43060.0,43059.0,0.00011852]
[1642210630002,2.25550443,43059.0,43046.0,0.59847441]
[1642210630301,0.0012057,43054.0,43046.0,0.59847441]
[1642210630497,0.422408,43053.0,43046.0,0.59847441]
[1642210630705,0.422408,43053.0,43046.0,0.0022]
[1642210630909,0.72374676,43053.0,43046.0,0.0022]
[1642210631100,0.34194469,43052.0,43046.0,0.0022]
[1642210631301,0.422408,43051.0,43046.0,0.0022]
[1642210631945,0.58693301,43050.0,43046.0,0.0022]
[1642210632144,1.00934101,43050.0,43046.0,0.0022]
[1642210632345,1.31185721,43050.0,43046.0,0.0022]
[1642210632746,0.7249242,43050.0,43046.0,0.0022]
[1642210633145,0.8249242,43050.0,43046.0,0.0022]
[1642210633646,1.41054809,43050.0,43046.0,0.0022]
[1642210634245,1.42654809,43050.0,43046.0,0.0022]
[1642210635394,1.41054809,43050.0,43046.0,0.0022]
[1642210636296,1.42654809,43050.0,43046.0,0.0022]
[1642210636997,0.34255167,43043.0,43042.0,0.00103134]
[1642210637196,0.34255167,43043.0,43039.0,0.58980575]
[1642210638197,0.26440586,43042.0,43039.0,0.58980575]
[1642210638403,0.26440586,43042.0,43040.0,0.25069038]
[1642210640752,0.26440586,43042.0,43039.0,0.58980575]
[1642210641554,0.54481649,43042.0,43039.0,0.58980575]
[1642210641751,0.26440586,43042.0,43039.0,0.58980575]
[1642210641951,0.26440586,43042.0,43038.0,0.0011]
[1642210645096,0.26440586,43042.0,43038.0,0.03638345]
[1642210646299,0.35455167,43043.0,43038.0,0.03638345]
[1642210647443,0.25962923,43041.0,43038.0,0.03638345]
[1642210647643,0.2656661,43041.0,43038.0,0.03638345]
[1642210648443,0.00603687,43041.0,43038.0,0.03638345]
[1642210648845,0.00603687,43041.0,43039.0,0.29574791]
[1642210649045,0.00603687,43041.0,43040.0,0.376208]
[1642210649244,0.00603687,43041.0,43039.0,0.30688311]
[1642210652094,0.00603687,43041.0,43039.0,0.30188311]
[1642210654743,0.00603687,43041.0,43038.0,0.03638345]
[1642210666392,0.00103687,43041.0,43038.0,0.03638345]
[1642210666796,0.00103687,43041.0,43039.0,0.376208]
[1642210668292,0.00103687,43041.0,43038.0,0.03638345]
[1642210676294,0.00103687,43041.0,43039.0,0.376208]
[1642210678948,0.00103687,43041.0,43038.0,0.03638345]
[1642210689303,0.00103687,43041.0,43039.0,0.376208]
[1642210691664,0.33386938,43041.0,43039.0,0.376208]
[1642210692063,0.33386938,43041.0,43038.0,0.03638345]
[1642210700042,0.48386938,43041.0,43038.0,0.03638345]
[1642210701146,0.33386938,43041.0,43038.0,0.03638345]
[1642210702645,0.00103687,43041.0,43038.0,0.03638345]
[1642210706022,0.00103687,43041.0,43038.0,0.0011]
[1642210715165,2.48052611,43041.0,43038.0,0.0011]
[1642210715464,0.00103687,43041.0,43038.0,0.0011]
[1642210715665,0.15103687,43041.0,43038.0,0.0011]
[1642210716668,0.00103687,43041.0,43038.0,0.0011]
[1642210718095,0.27370785,43041.0,43038.0,0.0011]
[1642210718293,0.52518833,43041.0,43038.0,0.0011]
[1642210718494,0.67518833,43041.0,43038.0,0.0011]
[1642210718994,0.40251735,43041.0,43038.0,0.0011]
[1642210719595,0.67508645,43041.0,43038.0,0.0011]
[1642210719795,0.67739689,43041.0,43038.0,0.0011]
[1642210720194,0.67464336,43041.0,43038.0,0.0011]
[1642210720395,0.27426456,43040.0,43038.0,0.0011]
[1642210720596,0.41051735,43041.0,43038.0,0.0011]
[1642210721643,0.40251735,43041.0,43038.0,0.0011]
[1642210722444,0.41051735,43041.0,43038.0,0.0011]
[1642210722845,0.68558966,43041.0,43038.0,0.0011]
[1642210723747,0.67758966,43041.0,43038.0,0.0011]
[1642210724546,0.68958966,43041.0,43038.0,0.0011]
[1642210724745,0.74768866,43041.0,43038.0,0.0011]
[1642210725816,0.73568866,43041.0,43038.0,0.0011]
[1642210726416,0.74768866,43041.0,43038.0,0.0011]
[1642210726621,0.80578966,43041.0,43038.0,0.0011]
[1642210726819,0.10129063,43039.0,43038.0,0.0011]
[1642210727016,0.88466181,43039.0,43038.0,0.0011]
[1642210727219,0.57369863,43039.0,43038.0,0.0011]
[1642210727418,0.67369863,43039.0,43038.0,0.0011]
[1642210728426,0.67369863,43039.0,43027.0,0.67796764]
[1642210728427,0.05811103,43035.0,43027.0,0.67796764]
[1642210728623,0.00123212,43028.0,43027.0,0.67796764]
[1642210729020,1.25445167,43028.0,43027.0,0.67796764]
[1642210729250,0.35445167,43028.0,43027.0,0.67796764]
[1642210729447,0.68108088,43028.0,43021.0,0.79431494]
[1642210729648,0.116248,43025.0,43018.0,0.32327558]
[1642210729847,0.058124,43025.0,43018.0,0.32327558]
[1642210730749,0.058124,43022.0,43018.0,0.32327558]
[1642210732348,0.37518062,43021.0,43018.0,0.32327558]
[1642210733398,0.37518062,43021.0,43015.0,0.0022]
[1642210733399,0.058127,43020.0,43015.0,0.0022]
[1642210734495,0.38818062,43021.0,43016.0,0.29445892]
[1642210735294,0.65898978,43021.0,43016.0,0.29445892]
[1642210735494,0.70898978,43021.0,43016.0,0.29445892]
[1642210735695,0.69598978,43021.0,43016.0,0.29445892]
[1642210736497,0.70898978,43021.0,43016.0,0.29445892]
[1642210736953,0.70898978,43021.0,43015.0,0.0022]
[1642210737151,0.0462,43020.0,43006.0,1.1203]
[1642210737351,0.00127044,43018.0,43007.0,0.79431494]
[1642210737549,0.080571,43013.0,43007.0,0.79431494]
[1642210737750,0.0462,43012.0,43007.0,0.79431494]
[1642210737953,0.104341,43012.0,43007.0,0.79431494]
[1642210738149,0.35205714,43010.0,43007.0,0.79431494]
[1642210738351,0.35205714,43010.0,43005.0,0.0033]
[1642210738352,0.0462,43009.0,43005.0,0.0033]
[1642210738554,0.12589,43009.0,43005.0,0.0033]
[1642210738752,0.376208,43008.0,43005.0,0.0033]
[1642210738952,0.0462,43007.0,43005.0,0.0033]
[1642210739154,0.376208,43006.0,43005.0,0.0033]
[1642210739353,0.422408,43006.0,43005.0,0.0033]
[1642210740398,0.0462,43006.0,43005.0,0.0033]
[1642210740594,0.0572,43006.0,43005.0,0.0033]
[1642210740795,0.433408,43006.0,43005.0,0.0033]
[1642210741796,0.422408,43006.0,43005.0,0.0033]
[1642210742596,0.429408,43006.0,43005.0,0.0033]
[1642210743797,0.422408,43006.0,43005.0,0.0033]
[1642210744446,0.428408,43006.0,43005.0,0.0033]
[1642210744647,0.0522,43006.0,43005.0,0.0033]
[1642210745747,0.0462,43006.0,43005.0,0.0033]
[1642210748496,2.44005051,43009.0,43005.0,0.0033]
[1642210748698,0.376208,43008.0,43005.0,0.33237734]
[1642210749497,0.376208,43008.0,43005.0,0.0033]
[1642210749700,2.1,43007.0,43001.0,0.00080075]
[1642210749899,0.376208,43006.0,43001.0,0.00080075]
[1642210751401,0.0462,43005.0,43001.0,0.00080075]
[1642210751646,0.38225032,43004.0,43001.0,0.00080075]
[1642210751846,0.44454253,43003.0,43001.0,0.00080075]
[1642210752049,1.126208,43002.0,43001.0,0.00080075]
[1642210752347,0.376208,43002.0,43001.0,0.00080075]
[1642210752548,0.385208,43002.0,43001.0,0.00080075]
[1642210752949,0.67594686,43002.0,43001.0,0.00080075]
[1642210753149,1.12594686,43002.0,43001.0,0.00080075]
[1642210753547,0.67594686,43002.0,43001.0,0.00080075]
[1642210753754,0.67594686,43002.0,42997.0,0.00052285]
[1642210753755,2.1,43000.0,42997.0,0.00052285]
[1642210753954,0.422408,42999.0,42997.0,0.00052285]
[1642210754249,2.36442084,42998.0,42997.0,0.00052285]
[1642210754450,2.85998884,42998.0,42997.0,0.00052285]
[1642210754648,2.58168488,42997.0,42994.0,0.00432285]
[1642210754849,0.49222019,42996.0,42994.0,0.00432285]
[1642210755048,0.376208,42995.0,42994.0,0.00432285]
[1642210755248,0.422408,42995.0,42994.0,0.00432285]
[1642210755700,2.472408,42995.0,42994.0,0.0011]
[1642210755900,0.422408,42995.0,42994.0,0.0011]
[1642210756100,1.43458689,42995.0,42994.0,0.0011]
[1642210756505,0.38979008,42984.0,42982.0,0.0011]
[1642210756702,0.376208,42983.0,42982.0,0.0011]
[1642210757400,0.82801295,42984.0,42982.0,0.0011]
[1642210757599,0.376208,42983.0,42975.0,0.049271]
[1642210757799,0.43745602,42977.0,42975.0,0.049271]
[1642210757999,0.43745602,42977.0,42976.0,0.376208]
[1642210758600,0.44445602,42977.0,42976.0,0.376208]
[1642210758800,0.44445602,42977.0,42976.0,0.66404901]
[1642210758998,0.44445602,42977.0,42976.0,0.376208]
[1642210759848,0.34125287,42984.0,42976.0,0.65708326]
[1642210760048,0.34125287,42984.0,42977.0,0.29718408]
[1642210760049,0.0462,42984.0,42977.0,0.29718408]
[1642210760250,0.0462,42989.0,42978.0,0.376208]
[1642210760448,0.00129824,42994.0,42979.0,0.31835377]
[1642210760649,0.00129824,42994.0,42974.0,0.0011]
[1642210760650,0.9662,42990.0,42987.0,0.29382708]
[1642210760853,0.376208,42989.0,42987.0,0.29382708]
[1642210761051,0.008,42990.0,42988.0,0.55181682]
[1642210761249,0.008,42990.0,42989.0,0.30248696]
[1642210761449,0.008,42990.0,42988.0,0.25562393]
[1642210761951,0.1,42997.0,42984.0,0.116303]
[1642210762150,0.37475438,42997.0,42983.0,1.77e-05]
[1642210762349,0.0462,42996.0,42983.0,1.77e-05]
[1642210762553,0.04743952,42996.0,42983.0,1.77e-05]
[1642210762752,0.33940302,42986.0,42980.0,0.2971]
[1642210763014,0.64937291,42986.0,42977.0,0.00128055]
[1642210763218,0.38830002,42982.0,42975.0,0.05817]
[1642210763816,0.38830002,42982.0,42976.0,0.32129139]
[1642210764015,0.3095824,42985.0,42976.0,0.32129139]
[1642210764217,0.3095824,42985.0,42977.0,0.11633716]
[1642210764721,0.65998542,42986.0,42976.0,0.32129139]
[1642210765118,0.32887457,42982.0,42974.0,0.11743404]
[1642210766319,0.32887457,42982.0,42976.0,0.37572076]
[1642210766748,0.32887457,42982.0,42976.0,0.31755476]
[1642210767348,0.32887457,42982.0,42977.0,0.05816974]
[1642210767750,0.32887457,42982.0,42978.0,0.29311126]
[1642210768554,0.35040302,42986.0,42980.0,0.33735292]
[1642210768751,0.011,42986.0,42981.0,0.30084262]
[1642210769050,0.011,42986.0,42980.0,0.39551492]
[1642210769850,0.38793636,42987.0,42980.0,0.39551492]
[1642210771105,0.38793636,42987.0,42980.0,0.72194126]
[1642210771304,0.38793636,42987.0,42981.0,0.29387826]
[1642210772702,0.38793636,42987.0,42983.0,0.05815722]
[1642210773102,0.376208,42986.0,42976.0,0.85448615]
[1642210773302,0.38793636,42987.0,42976.0,0.79631815]
[1642210773502,0.40812941,42978.0,42976.0,0.79631815]
[1642210773705,0.40812941,42978.0,42977.0,0.376208]
[1642210774454,0.40812941,42978.0,42974.0,0.0011]
[1642210774656,0.47607941,42978.0,42974.0,0.0011]
[1642210775454,0.32523025,42976.0,42974.0,0.0011]
[1642210776257,0.32523025,42976.0,42969.0,0.69859298]
[1642210776452,0.32523025,42976.0,42969.0,0.3095824]
[1642210776653,0.32523025,42976.0,42972.0,0.05817492]
[1642210776853,0.32523025,42976.0,42973.0,0.058172]
[1642210777152,0.32523025,42976.0,42973.0,0.34345414]
[1642210777352,0.32523025,42976.0,42973.0,0.058172]
[1642210777553,0.32523025,42976.0,42969.0,0.38821058]
[1642210777754,0.34571937,42974.0,42969.0,0.33821058]
[1642210778001,0.32523025,42976.0,42970.0,0.376208]
[1642210778201,0.32523025,42976.0,42969.0,1.24852828]
[1642210778603,0.32523025,42976.0,42970.0,0.05817793]
[1642210779402,0.41330289,42973.0,42970.0,0.05817793]
[1642210779603,0.41330289,42973.0,42969.0,0.15454029]
[1642210780003,0.41330289,42973.0,42966.0,0.11954029]
[1642210780202,0.40330289,42973.0,42967.0,0.376208]
[1642210780404,0.40330289,42973.0,42967.0,0.058181]
[1642210780604,0.41630289,42973.0,42967.0,0.058181]
[1642210780802,0.41630289,42973.0,42967.0,0.19522129]
[1642210781003,0.41630289,42973.0,42967.0,0.13704029]
[1642210781004,0.24816794,42969.0,42967.0,0.13704029]
[1642210781202,0.24816794,42969.0,42967.0,0.05818235]
[1642210781647,0.24816794,42969.0,42967.0,0.13704029]
[1642210782054,0.24816794,42969.0,42964.0,0.13934073]
[1642210782248,0.30734738,42968.0,42965.0,0.376208]
[1642210782450,0.30734738,42968.0,42964.0,0.0011]
[1642210782451,0.00124999,42967.0,42964.0,0.0011]
[1642210783348,0.32441461,42966.0,42964.0,0.0011]
[1642210784548,0.376208,42965.0,42964.0,0.0011]
[1642210784952,0.37612095,42965.0,42964.0,0.0011]
[1642210786609,0.33141461,42966.0,42964.0,0.0011]
[1642210787104,0.376404,42965.0,42964.0,0.0011]
[1642210787805,0.32441461,42966.0,42964.0,0.0011]
[1642210788204,0.376404,42965.0,42964.0,0.0011]
[1642210789258,0.32441461,42966.0,42964.0,0.0011]
[1642210790253,0.376404,42965.0,42964.0,0.0011]
[1642210791053,0.32441461,42966.0,42964.0,0.0011]
[1642210795603,0.32441461,42966.0,42961.0,0.0022]
[1642210795806,0.47881761,42966.0,42961.0,0.0022]
[1642210796002,0.62881761,42966.0,42961.0,0.0022]
[1642210796204,0.00129524,42963.0,42961.0,0.0022]
[1642210796504,0.00129524,42963.0,42957.0,1.79571815]
[1642210796505,0.24797886,42962.0,42957.0,1.79571815]
[1642210796755,0.00125058,42958.0,42957.0,0.79631815]
[1642210796963,0.00125058,42958.0,42957.0,1.49829183]
[1642210797158,2.01769058,42958.0,42957.0,1.49829183]